lending/lending_fUSD_20251016
["ID","MTS","AMOUNT","RATE_DAILY","PERIOD"]
[391556261,1760651442993,-200.0,0.00027155,2]
[391556262,1760651443002,-200.0,0.00027155,2]
[391556263,1760651443015,-200.0,0.00027155,2]
[391556264,1760651443024,-200.0,0.00027155,2]
[391556265,1760651443034,-200.0,0.00027155,2]
[391556266,1760651443043,-244.0,0.00027155,2]
[391556267,1760651443053,-151.71,0.00027166,2]
[391556268,1760651443063,-150.56,0.00027166,2]
[391556269,1760651443072,-150.53,0.00027166,2]
[391556270,1760651443082,-628.40722934,0.0002719,7]
[391556271,1760651443094,-168.0,0.00027258,2]
[391556272,1760651443103,-500.0,0.00027273,2]
[391556273,1760651443112,-259.23436214,0.00027273,2]
[391556274,1760651443121,-49372.6640814,0.0002728,3]
[391556275,1760651443130,-181.88166078,0.00027287,7]
[391556276,1760651443140,-74058.9961221,0.0002729,3]
[391556277,1760651443150,-58325.8733759,0.0002729,3]
[391556278,1760651443159,-312.57711192,0.00027299,2]
[391556279,1760651443168,-500.0,0.00027299,2]
[391556280,1760651443177,-1000.0,0.00027299,2]
[391556281,1760651443188,-1008.2913,0.00027299,2]
[391556282,1760651443197,-133890.8837987,0.000273,4]
[391556283,1760651443238,-44701.09916656,0.000273,4]
[391556284,1760651443247,-24686.3320407,0.00027308,3]
[391556285,1760651443257,-19441.957792,0.00027308,3]
[391556286,1760651443267,-168.0,0.00027315,2]
[391556287,1760651443276,-168.0,0.00027356,2]
[391556289,1760651443285,-19441.957792,0.00027357,3]
[391556290,1760651443295,-168.0,0.0002736,2]
[391556291,1760651443303,-18092.95626261,0.00027368,3]
[391556292,1760651443315,-657.7832942,0.00027368,3]
[391556293,1760651443325,-1084.5970725,0.00027368,3]
[391556294,1760651443404,-4850.99541139,0.00027368,3]
[391556295,1760651443413,-164.78088952,0.00027369,2]
[391556296,1760651443423,-500.0,0.00027369,2]
[391556297,1760651443432,-500.0,0.00027369,2]
[391556298,1760651443442,-255.92790262,0.00027369,2]
[391556299,1760651443451,-523.58192998,0.00027369,2]
[391556300,1760651443460,-384.57398844,0.00027369,2]
[391556301,1760651443470,-500.0,0.00027369,2]
[391556302,1760651443479,-19441.957792,0.0002737,3]
[391556303,1760651443489,-169.58367852,0.00027375,2]
[391556304,1760651443499,-24686.3320407,0.00027377,3]
[391556305,1760651443508,-24686.3320407,0.0002738,3]
[391556306,1760651443517,-19441.957792,0.0002738,3]
[391556307,1760651443527,-168.0,0.00027383,2]
[391556308,1760651443536,-19441.957792,0.00027387,3]
[391556309,1760651443545,-4042.93023911,0.0002739,2]
[391556310,1760651443554,-7986.40734552,0.0002739,2]
[391556311,1760651443564,-4316.30418448,0.0002739,7]
[391556312,1760651443573,-3187.92706175,0.0002739,2]
[391556313,1760651443582,-24686.3320407,0.0002739,3]
[391556314,1760651443591,-19441.957792,0.0002739,3]
[391556315,1760651443601,-350.0,0.00027397,7]
[391556316,1760651443610,-201.0,0.00027397,2]
[391556317,1760651443619,-33929.83,0.00027397,2]
[391556318,1760651443629,-151.53,0.00027397,2]
[391556319,1760651443639,-500.0,0.00027399,120]
[391556320,1760651443648,-3968.39,0.000274,7]
[391556321,1760651443657,-3978.17,0.000274,2]
[391556322,1760651443666,-36747.73,0.000274,2]
[391556323,1760651443675,-150.0,0.00027411,7]
[391556324,1760651443685,-24686.3320407,0.00027451,3]
[391556325,1760651443694,-19441.957792,0.00027451,3]
[391556326,1760651443703,-168.0,0.00027475,2]
[391556327,1760651443713,-2000.0,0.0002748,120]
[391556328,1760651443722,-257.40340955,0.0002748,2]
[391556329,1760651443731,-168.0,0.00027486,2]
[391556330,1760651443740,-540.18889414,0.000275,2]
[391556331,1760651443750,-168.0,0.00027531,2]
[391556332,1760651443759,-350.0,0.00027534,7]
[391556333,1760651443769,-4516.51566232,0.00027565,2]
[391556334,1760651443778,-4362.79005745,0.00027572,2]
[391556335,1760651443787,-168.0,0.0002762,2]
[391556336,1760651443796,-350.0,0.00027671,7]
[391556337,1760651443805,-550.78,0.00027671,7]
[391556338,1760651443815,-1000.0,0.00027704,30]
[391556339,1760651443824,-1000.0,0.00027704,30]
[391556340,1760651443834,-1000.0,0.00027704,30]
[391556341,1760651443843,-1005.46931787,0.00027704,30]
[391556342,1760651443852,-1043.37073163,0.00027709,7]
[391556343,1760651443861,-19441.957792,0.00027751,3]
[391556344,1760651443871,-169.96504745,0.00027796,2]
[391556345,1760651443880,-168.0,0.0002783,2]
[391556346,1760651443891,-24686.3320407,0.00027852,3]
[391556347,1760651443900,-534.03,0.00027862,2]
[391556348,1760651443909,-300.0,0.000279,33]
[391556349,1760651443918,-1031.8,0.00027915,2]
[391556350,1760651443928,-500.0,0.00027923,120]
[391556351,1760651443937,-550.78,0.00027945,8]
[391556352,1760651443946,-19441.957792,0.00027951,3]
[391556353,1760651443955,-500.0,0.00027959,120]
[391556354,1760651443965,-24686.3320407,0.0002796,3]
[391556355,1760651443974,-500.0,0.00027967,120]
[391556356,1760651443984,-19441.957792,0.0002797,3]
[391556357,1760651443993,-500.0,0.00027973,5]
[391556358,1760651444003,-49372.6640814,0.0002799,3]
[391556359,1760651444016,-25242.66983755,0.0002799,3]
[391556360,1760651444034,-337.27249606,0.0002799,3]
[391556361,1760651445870,-5259.99999913,0.0002799,3]
[391556362,1760651445882,-14734.10191856,0.0002799,3]
[391556365,1760651445941,-1952.78086608,0.0002799,3]
[391556366,1760651446007,-3399.37802863,0.0002799,3]
[391556367,1760651446247,-7399.67022989,0.0002799,3]
[391556368,1760651446256,-282.11,0.00028,2]
[391556369,1760651446266,-1809.07081368,0.00028,120]
[391556370,1760651446275,-1398.05888755,0.00028,30]
[391556371,1760651446287,-796.7384895,0.00028,30]
[391556372,1760651446296,-2010.56425723,0.00028,2]
[391556373,1760651446307,-262.6,0.00028,2]
[391556379,1760651692576,20587.19,0.00027397,120]
[391556380,1760651794531,-156.80998028,0.00024299,47]
[391556381,1760651794559,-96.79228706,0.0002434,2]
[391556382,1760651796263,-203.54771294,0.0002434,2]
[391556383,1760651796291,-91.77194713,0.00024354,2]
[391556384,1760651797778,-214.17805287,0.00024354,2]
[391556385,1760651797804,-156.50228706,0.00024389,2]
[391556398,1760652004126,-199.51,0.00023311,2]
[391556399,1760652105198,-176.25572695,0.00023311,2]
[391556402,1760652234697,500.1,0.00027397,120]
[391556403,1760652267155,740.1,0.00012014,2]
[391556404,1760652267366,740.1,0.00012647,2]
[391556405,1760652267584,740.1,0.00013279,2]
[391556433,1760652632085,-740.1,0.00013911,2]
[391556434,1760652632097,-740.1,0.00014544,2]
[391556435,1760652632111,-740.1,0.00015176,2]
[391556436,1760652632120,-117.1656,0.00015302,2]
[391556437,1760652632131,-77.8344,0.00015302,2]
[391556438,1760652632140,-740.1,0.00015808,2]
[391556439,1760652632150,-740.1,0.00016441,2]
[391556440,1760652632159,-740.1,0.00017073,2]
[391556441,1760652632169,-740.1,0.00017705,2]
[391556442,1760652632178,-740.1,0.00018338,2]
[391556443,1760652632187,-740.1,0.0001897,2]
[391556444,1760652632196,-300.0,0.000196,2]
[391556445,1760652632206,-1126.16776193,0.00019601,2]
[391556446,1760652632218,-908.93223807,0.00019601,2]
[391556447,1760652632227,-667.0,0.00019601,2]
[391556448,1760652632236,-740.1,0.00019602,2]
[391556449,1760652632246,-308.59,0.00019602,2]
[391556450,1760652632255,-9999.99,0.00019602,2]
[391556451,1760652632264,-1791.63,0.00019602,2]
[391556452,1760652632274,-1153.0,0.00020234,2]
[391556453,1760652632283,-740.1,0.00020235,2]
[391556454,1760652632293,-740.1,0.00020867,2]
[391556455,1760652632302,-420.0,0.00021351,2]
[391556456,1760652632311,-740.1,0.00021499,2]
[391556457,1760652632321,-740.1,0.00022132,2]
[391556458,1760652632330,-740.1,0.00022764,2]
[391556459,1760652632341,-250.0,0.00023164,2]
[391556460,1760652632353,-587.0,0.00023258,2]
[391556461,1760652632362,-160.0,0.0002329,2]
[391556462,1760652632372,-301.71,0.00023308,2]
[391556463,1760652632383,-304.45,0.00023308,2]
[391556465,1760652632392,-303.69,0.00023308,2]
[391556466,1760652632402,-305.62,0.00023309,2]
[391556468,1760652632412,-305.75,0.00023309,2]
[391556470,1760652632421,-305.66,0.0002331,2]
[391556471,1760652632432,-302.73,0.0002331,2]
[391556472,1760652632442,-124.55427305,0.00023311,2]
[391556473,1760652632452,-304.14,0.00023311,2]
[391556474,1760652632463,-302.55,0.00023311,2]
[391556475,1760652632472,-305.66,0.00023311,2]
[391556476,1760652632482,-38.0299572,0.00023311,2]
[391556477,1760652632492,-150.0,0.00023311,2]
[391556478,1760652632501,-169.45712011,0.00023311,2]
[391556480,1760652632511,-303.81,0.00023311,2]
[391556482,1760652632520,-305.02,0.00023311,2]
[391556483,1760652632529,-300.73,0.00023312,2]
[391556485,1760652632539,-305.75,0.00023318,2]
[391556487,1760652632548,-303.38,0.00023347,2]
[391556489,1760652632557,-740.1,0.00023396,2]
[391556491,1760652632567,-303.33,0.00023501,2]
[391556493,1760652632576,-302.63,0.00023501,2]
[391556495,1760652632585,-436.58,0.00024,2]
[391556497,1760652632594,-740.1,0.00024029,2]
[391556499,1760652632604,-163.68627136,0.00024067,2]
[391556502,1760652632614,-166.51784651,0.00024127,2]
[391556504,1760652632624,-252.83359657,0.00024127,2]
[391556506,1760652632633,-340.03348086,0.00024127,2]
[391556508,1760652632642,-427.89675667,0.00024127,2]
[391556510,1760652632652,-516.29233577,0.00024127,2]
[391556512,1760652632661,-1194.84,0.00024157,2]
[391556514,1760652632670,-302.45,0.0002433,2]
[391556515,1760652632679,-304.4,0.00024341,2]
[391556518,1760652632689,-475.57272817,0.00024373,2]
[391556519,1760652632698,-304.3,0.00024395,2]
[391556522,1760652632709,-301.82,0.00024395,2]
[391556524,1760652632719,-150.5,0.00024395,2]
[391556526,1760652632729,-301.13,0.00024396,2]
[391556528,1760652632738,-150.47,0.00024397,2]
[391556530,1760652632747,-302.68,0.00024397,2]
[391556532,1760652632757,-304.23,0.00024397,2]
[391556534,1760652632766,-152.81,0.00024398,2]
[391556536,1760652632775,-151.67,0.00024398,2]
[391556538,1760652632785,-303.22,0.00024398,2]
[391556540,1760652632794,-152.62,0.00024399,2]
[391556542,1760652632803,-302.2,0.00024399,2]
[391556544,1760652632812,-151.64,0.00024399,2]
[391556546,1760652632822,-303.34,0.00024399,2]
[391556548,1760652632832,-2000.0,0.000244,2]
[391556550,1760652632841,-152.81,0.000244,2]
[391556552,1760652632850,-305.33,0.000244,2]
[391556554,1760652632859,-302.4,0.000244,2]
[391556556,1760652632868,-301.86,0.000244,2]
[391556558,1760652632877,-850.95,0.00024405,2]
[391556560,1760652632887,-605.13304774,0.00024616,2]
[391556562,1760652632896,-10145.12696691,0.0002479,2]
[391556564,1760652632905,-500.0,0.00024932,2]
[391556566,1760652632915,-158.0,0.00025041,2]
[391556568,1760652632924,-701.63,0.00025193,2]
[391556570,1760652632934,-150.0,0.00025202,2]
[391556572,1760652632943,-1466.96,0.00025227,2]
[391556574,1760652632953,-956.989,0.00025241,9]
[391556576,1760652632963,-520.15,0.00025272,2]
[391556578,1760652632972,-150.88,0.00025272,2]
[391556579,1760652632981,-151.95,0.00025272,2]
[391556582,1760652632990,-151.18,0.00025272,2]
[391556583,1760652632999,-151.84,0.00025272,2]
[391556585,1760652633009,-533.02,0.00025272,2]
[391556588,1760652633019,-613.0,0.00025336,2]
[391556590,1760652633029,-421.61,0.00025408,2]
[391556592,1760652633038,-200.0,0.00025451,2]
[391556594,1760652633047,-694.35661422,0.00025452,3]
[391556596,1760652633057,-279.34590448,0.00026088,4]
[391556598,1760652633067,-150.0,0.00026088,4]
[391556599,1760652633077,-175.28577664,0.00026088,4]
[391556601,1760652633087,-155.20340553,0.00026088,4]
[391556603,1760652633096,-170.1321002,0.00026088,4]
[391556605,1760652633106,-1000.0,0.00026096,2]
[391556607,1760652633116,-783.91626406,0.00026287,5]
[391556610,1760652633126,-200.0,0.00026459,2]
[391556612,1760652633136,-408.14859405,0.00026582,2]
[391556613,1760652633146,-1000.0,0.00026586,2]
[391556616,1760652633155,-1000.0,0.00026586,2]
[391556618,1760652633167,-1000.0,0.00026586,2]
[391556619,1760652633182,-1000.0,0.00026586,2]
[391556621,1760652633192,-1000.0,0.00026586,2]
[391556623,1760652633201,-1000.0,0.00026586,2]
[391556625,1760652633211,-1000.0,0.00026586,2]
[391556628,1760652633221,-1000.0,0.00026586,2]
[391556629,1760652633230,-1000.0,0.00026586,2]
[391556631,1760652633240,-1000.0,0.00026586,2]
[391556633,1760652633249,-151.0,0.00026586,2]
[391556635,1760652633259,-1000.0,0.00026586,2]
[391556637,1760652633268,-1000.0,0.00026586,2]
[391556639,1760652633278,-250.0,0.00026586,2]
[391556641,1760652633288,-1081.0350518,0.00026586,2]
[391556644,1760652633297,-250.0,0.00026586,2]
[391556646,1760652633308,-250.0,0.00026586,2]
[391556648,1760652633317,-250.0,0.00026586,2]
[391556650,1760652633326,-194.72792766,0.00026586,2]
[391556652,1760652633337,-250.0,0.00026586,2]
[391556653,1760652633350,-250.0,0.00026586,2]
[391556655,1760652633359,-250.0,0.00026586,2]
[391556657,1760652633369,-322.6107,0.00026586,2]
[391556659,1760652633379,-250.0,0.00026586,2]
[391556660,1760652633388,-250.0,0.00026586,2]
[391556661,1760652633397,-250.0,0.00026586,2]
[391556662,1760652633407,-250.0,0.00026586,2]
[391556663,1760652633416,-250.0,0.00026586,2]
[391556664,1760652633428,-250.0,0.00026586,2]
[391556665,1760652633438,-250.0,0.00026586,2]
[391556666,1760652633447,-250.0,0.00026586,2]
[391556667,1760652633457,-250.0,0.00026586,2]
[391556668,1760652633466,-250.0,0.00026586,2]
[391556669,1760652633476,-267.46074303,0.00026586,2]
[391556670,1760652633485,-250.0,0.00026586,2]
[391556671,1760652633495,-250.0,0.00026586,2]
[391556672,1760652633504,-250.0,0.00026586,2]
[391556673,1760652633514,-250.0,0.00026586,2]
[391556674,1760652633523,-250.0,0.00026586,2]
[391556675,1760652633532,-250.0,0.00026586,2]
[391556676,1760652633541,-250.0,0.00026586,2]
[391556677,1760652633551,-151.0,0.00026586,2]
[391556678,1760652633560,-151.0,0.00026586,2]
[391556679,1760652633569,-151.0,0.00026586,2]
[391556680,1760652633579,-151.0,0.00026586,2]
[391556681,1760652633588,-721.12765535,0.00026586,2]
[391556682,1760652633597,-151.0,0.00026586,2]
[391556683,1760652633911,-151.0,0.00026586,2]
[391556684,1760652633920,-243.27322427,0.00026586,2]
[391556685,1760652633930,-1000.0,0.00026586,2]
[391556686,1760652633940,-250.0,0.00026586,2]
[391556687,1760652633949,-1000.0,0.00026586,2]
[391556688,1760652633962,-250.0,0.00026586,2]
[391556689,1760652633971,-1000.0,0.00026586,2]
[391556690,1760652633980,-1000.0,0.00026586,2]
[391556691,1760652633989,-250.0,0.00026586,2]
[391556692,1760652633998,-1000.0,0.00026586,2]
[391556693,1760652634007,-1000.0,0.00026586,2]
[391556694,1760652634016,-1000.0,0.00026586,2]
[391556695,1760652634025,-250.0,0.00026586,2]
[391556696,1760652634034,-1000.0,0.00026586,2]
[391556697,1760652634043,-1000.0,0.00026586,2]
[391556698,1760652634052,-250.0,0.00026586,2]
[391556699,1760652634061,-1000.0,0.00026586,2]
[391556700,1760652634070,-250.0,0.00026586,2]
[391556701,1760652634080,-1000.0,0.00026586,2]
[391556702,1760652634089,-1000.0,0.00026586,2]
[391556703,1760652634098,-250.0,0.00026586,2]
[391556704,1760652634108,-1000.0,0.00026586,2]
[391556705,1760652634117,-1000.0,0.00026586,2]
[391556706,1760652634126,-250.0,0.00026586,2]
[391556707,1760652634135,-500.0,0.00026586,2]
[391556708,1760652634145,-159.33364727,0.00026586,2]
[391556709,1760652634664,-840.66635273,0.00026586,2]
[391556710,1760652634674,-250.0,0.00026586,2]
[391556711,1760652634684,-1000.0,0.00026586,2]
[391556712,1760652634694,-250.0,0.00026586,2]
[391556713,1760652634703,-1000.0,0.00026586,2]
[391556714,1760652634713,-250.0,0.00026586,2]
[391556715,1760652634722,-1000.0,0.00026586,2]
[391556716,1760652634731,-250.0,0.00026586,2]
[391556717,1760652634740,-250.0,0.00026586,2]
[391556718,1760652634750,-151.0,0.00026586,2]
[391556719,1760652634759,-9211.34798985,0.00026586,2]
[391556720,1760652634768,-250.0,0.00026586,2]
[391556721,1760652634778,-250.0,0.00026586,2]
[391556722,1760652634786,-250.0,0.00026586,2]
[391556723,1760652634796,-250.0,0.00026586,2]
[391556724,1760652634805,-250.0,0.00026586,2]
[391556725,1760652634815,-250.0,0.00026586,2]
[391556726,1760652634823,-250.0,0.00026586,2]
[391556727,1760652634833,-250.0,0.00026586,2]
[391556728,1760652634842,-250.0,0.00026586,2]
[391556729,1760652634851,-250.0,0.00026586,2]
[391556730,1760652634860,-250.0,0.00026586,2]
[391556731,1760652634869,-1000.0,0.00026586,2]
[391556732,1760652634878,-1000.0,0.00026586,2]
[391556733,1760652634888,-1000.0,0.00026586,2]
[391556734,1760652634897,-1000.0,0.00026586,2]
[391556735,1760652634906,-1000.0,0.00026586,2]
[391556736,1760652634915,-1000.0,0.00026586,2]
[391556737,1760652634924,-869.97302065,0.00026586,2]
[391556738,1760652634954,-130.02697935,0.00026586,2]
[391556739,1760652634963,-1000.0,0.00026586,2]
[391556740,1760652634972,-750.45648065,0.00026586,2]
[391556741,1760652634983,-249.54351935,0.00026586,2]
[391556742,1760652634992,-85.64706054,0.00026586,2]
[391556743,1760652635003,-874.71762426,0.00026586,2]
[391556744,1760652635021,-39.6353152,0.00026586,2]
[391556745,1760652635030,-1000.0,0.00026586,2]
[391556746,1760652635039,-1000.0,0.00026586,2]
[391556747,1760652635048,-250.0,0.00026586,2]
[391556748,1760652635057,-250.0,0.00026586,2]
[391556749,1760652635066,-250.0,0.00026586,2]
[391556750,1760652635075,-250.0,0.00026586,2]
[391556751,1760652635084,-250.0,0.00026586,2]
[391556752,1760652635093,-250.0,0.00026586,2]
[391556753,1760652635102,-250.0,0.00026586,2]
[391556754,1760652635111,-250.0,0.00026586,2]
[391556755,1760652635120,-250.0,0.00026586,2]
[391556756,1760652635130,-250.0,0.00026586,2]
[391556757,1760652635139,-250.0,0.00026586,2]
[391556758,1760652635148,-250.0,0.00026586,2]
[391556759,1760652635157,-644.79446245,0.00026586,2]
[391556760,1760652635167,-862.65211886,0.00026596,2]
[391556761,1760652635186,-360.63,0.00026596,2]
[391556762,1760652635197,-996.4525,0.00026596,2]
[391556763,1760652635209,-142.76843042,0.00026596,2]
[391556764,1760652635218,-925.36023458,0.00026641,2]
[391556765,1760652635230,-3274.9241422,0.00026641,2]
[391556766,1760652635242,-4193.93316334,0.00026641,2]
[391556773,1760652637944,-1157.95032535,0.00026641,2]
[391556777,1760652637955,-9905.5980765,0.00026696,2]
[391556778,1760652637965,-5823.16141125,0.00026751,2]
[391556786,1760652638006,-4448.94379408,0.00026751,2]
[391556788,1760652638021,-1180.58437037,0.00026806,2]
[391556790,1760652638032,-9471.58872755,0.00026806,2]
[391556792,1760652638042,-500.0,0.00026858,2]
[391556794,1760652638053,-500.0,0.00026858,2]
[391556796,1760652638063,-500.0,0.00026858,2]
[391556798,1760652638073,-500.0,0.00026858,2]
[391556800,1760652638083,-500.0,0.00026858,2]
[391556802,1760652638093,-500.0,0.00026858,2]
[391556804,1760652638103,-500.0,0.00026858,2]
[391556805,1760652638113,-500.0,0.00026858,2]
[391556806,1760652638123,-500.0,0.00026858,2]
[391556807,1760652638133,-500.0,0.00026858,2]
[391556808,1760652638143,-500.0,0.00026858,2]
[391556809,1760652638152,-500.0,0.00026858,2]
[391556810,1760652638162,-500.0,0.00026858,2]
[391556811,1760652638172,-500.0,0.00026858,2]
[391556812,1760652638185,-497.24257679,0.00026858,2]
[391556813,1760652638195,-500.0,0.00026858,2]
[391556814,1760652638206,-500.0,0.00026858,2]
[391556815,1760652638215,-11046.30350255,0.00026861,2]
[391556816,1760652638226,-11455.01673214,0.00026916,2]
[391556817,1760652638236,-11878.85235123,0.00026971,2]
[391556818,1760652638246,-1000.0,0.00027,2]
[391556819,1760652638256,-1000.0,0.00027,2]
[391556820,1760652638266,-1000.0,0.00027,2]
[391556821,1760652638277,-1000.0,0.00027,2]
[391556822,1760652638287,-1000.0,0.00027,2]
[391556823,1760652638298,-588.81629958,0.00027,2]
[391556824,1760652638346,-411.18370042,0.00027,2]
[391556825,1760652638356,-1000.0,0.00027,2]
[391556826,1760652638367,-1000.0,0.00027025,2]
[391556828,1760652638384,-12318.36988823,0.00027026,2]
[391556830,1760652638394,-1586.21,0.00027047,2]
[391556831,1760652638405,-2362.50304922,0.0002705,2]
[391556833,1760652638417,-4394.7142708,0.00027081,2]
[391556836,1760652638428,-1456.02346859,0.00027108,2]
[391556837,1760652638438,-873.77555423,0.00027123,7]
[391556840,1760652638449,-151.0,0.00027134,2]
[391556842,1760652638461,-151.05,0.00027155,2]
[391556844,1760652638472,-250.0,0.0002719,7]
[391556845,1760652638481,-418.37,0.00027255,2]
[391556846,1760652638491,-474.73,0.00027293,2]
[391556847,1760652638501,-695.17,0.00027297,2]
[391556848,1760652638511,-474.73,0.00027297,2]
[391556849,1760652638521,-474.73,0.00027297,2]
[391556850,1760652638531,-500.0,0.00027396,2]
[391556851,1760652638540,-500.0,0.00027396,2]
[391556852,1760652638551,-500.0,0.00027396,2]
[391556853,1760652638561,-500.0,0.00027396,2]
[391556854,1760652638571,-500.0,0.00027396,2]
[391556855,1760652638581,-500.0,0.00027396,2]
[391556857,1760652638591,-500.0,0.00027396,2]
[391556859,1760652638601,-500.0,0.00027396,2]
[391556860,1760652638611,-500.0,0.00027396,2]
[391556863,1760652638622,-267.02,0.00027396,2]
[391556865,1760652638632,-300.0,0.00027397,2]
[391556867,1760652638643,-510.31,0.00027397,2]
[391556869,1760652638653,-1500.0,0.00027397,16]
[391556871,1760652638663,-1422.66,0.00027397,2]
[391556873,1760652638673,-9908.2401108,0.00027443,2]
[391556875,1760652638683,-850.95,0.00027455,120]
[391556876,1760652638692,-2500.0,0.000275,2]
[391556879,1760652638702,-2362.50304922,0.00027504,2]
[391556881,1760652638716,-150.0,0.00027537,7]
[391556882,1760652638725,-1870.0,0.00027607,2]
[391556885,1760652638736,-2000.0,0.00027654,120]
[391556887,1760652638746,-1450.28994546,0.00027691,2]
[391556889,1760652638762,-131.6758462,0.00027691,2]
[391556891,1760652638773,-1636.0,0.0002772,5]
[391556893,1760652638783,-692.89534339,0.0002772,2]
[391556895,1760652638794,-1901.7195798,0.00027797,2]
[391556898,1760652638804,-1245.7772453,0.00027797,2]
[391556900,1760652638815,-5269.14721484,0.0002789,2]
[391556902,1760652638825,-161.65725697,0.00027895,2]
[391556904,1760652638835,-307.64429897,0.00027895,2]
[391556906,1760652638845,-300.0,0.00027898,33]
[391556908,1760652638855,-4320.94963422,0.00027899,3]
[391556910,1760652638865,-5583.595554,0.00027903,2]
[391556912,1760652638875,-5790.352939,0.00027906,2]
[391556914,1760652638885,-6680.8801653,0.00027909,2]
[391556916,1760652638895,-10623.4396477,0.00027909,2]
[391556918,1760652638905,-277.1021635,0.00027918,2]
[391556920,1760652638918,-612.55720356,0.00027918,2]
[391556922,1760652638928,-246.61660644,0.00027921,7]
[391556925,1760652638941,-127.38339356,0.00027921,7]
[391556927,1760652638954,-944.96660644,0.00027945,3]
[391556929,1760652638969,-3375.98302778,0.00027945,3]
[391556931,1760652638979,-312.27,0.00027953,2]
[391556933,1760652638989,-310.6741041,0.00027955,2]
[391556935,1760652638999,-277.35679052,0.00027955,2]
[391556937,1760652639011,-1508.7160776,0.00027958,2]
[391556940,1760652639028,-344.50826208,0.00027958,2]
[391556942,1760652639040,-509.27870954,0.00027958,2]
[391556944,1760652639050,-963.90527268,0.00027959,8]
[391556946,1760652639060,-2038.48089859,0.0002798,3]
[391556948,1760652639072,-917.06945888,0.0002798,3]
[391556951,1760652639084,-26000.0,0.0002798,3]
[391556953,1760652639096,-787.348564,0.0002798,3]
[391556955,1760652639109,-4824.69815233,0.0002798,3]
[391556957,1760652639118,-489.65388103,0.0002799,3]
[391556959,1760652639130,-391.99159999,0.0002799,3]
[391556962,1760652639146,-2476.36366496,0.0002799,3]
[391556964,1760652639161,-1701.2,0.0002799,3]
[391557064,1760652640087,-1619.672,0.00025335,2]
[391557066,1760652640096,-46792.18646462,0.0002799,3]
[391557068,1760652640106,-170.12,0.00027995,2]
[391557070,1760652640116,-523.12,0.00027999,7]
[391557072,1760652640126,-47740.64204556,0.00028,2]
[391557074,1760652640137,-683.09992182,0.00028,120]
[391557076,1760652640146,-160.0,0.00028,2]
[391557078,1760652640156,-821.0,0.00028,3]
[391557080,1760652640166,-821.0,0.00028,3]
[391557082,1760652640175,-821.0,0.00028,3]
[391557084,1760652640185,-821.0,0.00028,3]
[391557086,1760652640195,-151.0,0.00028,3]
[391557088,1760652640204,-151.0,0.00028,3]
[391557090,1760652640216,-151.0,0.00028,3]
[391557141,1760652640682,-821.0,0.00028,3]
[391557143,1760652640692,-151.0,0.00028,3]
[391557145,1760652640702,-151.0,0.00028,3]
[391557147,1760652640712,-1233.0,0.00028,3]
[391557149,1760652640722,-821.0,0.00028,3]
[391557151,1760652640731,-151.0,0.00028,3]
[391557153,1760652640740,-151.0,0.00028,3]
[391557155,1760652640749,-821.0,0.00028,3]
[391557157,1760652640758,-1233.0,0.00028,3]
[391557159,1760652640767,-151.0,0.00028,3]
[391557161,1760652640776,-151.0,0.00028,3]
[391557163,1760652640786,-1305.22887885,0.00028,3]
[391557165,1760652640795,-151.0,0.00028,3]
[391557167,1760652640804,-151.0,0.00028,3]
[391557169,1760652640813,-151.0,0.00028,3]